bitfinex/quotes_ETHUSD_20241212
["timestamp","ask_amount","ask_price","bid_price","bid_amount"]
[1734012346554,2.54429,3930.4,3929.3,5.51417161]
[1734012347080,2.54398,3930.9,3929.7,2.96920161]
[1734012347081,0.55,3930.9,3929.7,2.96920161]
[1734012347396,2.54408,3930.7,3929.7,2.96920161]
[1734012347526,2.54406,3930.8,3929.7,2.96920161]
[1734012347719,2.54406,3930.8,3929.7,5.51392161]
[1734012347934,0.92988185,3931.0,3929.7,5.51392161]
[1734012347935,3.45574444,3931.0,3929.8,2.54465]
[1734012348124,0.91185444,3931.0,3930.1,2.5444]
[1734012348322,0.91185444,3931.0,3930.3,2.54431]
[1734012348756,0.91185444,3931.0,3930.4,2.54425]
[1734012348922,0.91185444,3931.0,3930.4,2.54424]
[1734012349346,0.90879411,3931.0,3930.1,2.96920161]
[1734012349549,0.90879411,3931.0,3930.2,2.54439]
[1734012349970,0.90879411,3931.0,3930.1,2.96920161]
[1734012350136,0.90879411,3931.0,3930.3,2.54431]
[1734012350723,2.54362,3931.4,3930.3,2.54431]
[1734012351466,2.54362,3931.4,3930.4,2.54425]
[1734012351680,0.90879411,3931.5,3930.1,2.96920161]
[1734012351971,0.90879411,3932.0,3930.9,2.96920161]
[1734012352124,2.56100741,3932.4,3931.2,2.54375]
[1734012352321,0.01802741,3932.4,3931.2,2.54375]
[1734012352531,3.46942152,3933.0,3931.2,5.54375]
[1734012352849,0.92682152,3933.0,3931.2,6.35905]
[1734012353572,1e-05,3931.3,3931.2,6.90905]
[1734012355276,1e-05,3931.3,3931.2,6.35905]
[1734012358017,1e-05,3931.3,3931.2,6.90905]
[1734012358224,3.07057893,3933.6,3932.3,2.543]
[1734012358382,2.54246,3933.2,3932.0,2.54319]
[1734012358721,0.52836893,3933.6,3931.3,2.96920161]
[1734012358722,0.92682152,3933.1,3931.3,2.96920161]
[1734012358934,0.92682152,3933.1,3931.3,2.54367]
[1734012358935,3.45137411,3933.0,3931.3,2.54367]
[1734012359093,2.5429,3932.6,3931.3,2.54367]
[1734012359276,0.01802741,3932.5,3931.3,2.54367]
[1734012359471,2.54299,3932.4,3931.3,2.54367]
[1734012359737,0.01802741,3932.3,3931.2,3.78450161]
[1734012359890,2.56088741,3932.6,3931.4,2.54361]
[1734012360092,0.25608874,3932.5,3931.4,2.54361]
[1734012360421,0.01802741,3932.4,3931.1,3.0]
[1734012360638,2.5433,3931.9,3930.8,5.54399]
[1734012360937,0.01802741,3931.9,3930.3,0.7889]
[1734012361075,0.01802741,3932.1,3930.7,2.54406]
[1734012361287,0.52050768,3932.0,3930.5,2.5442]
[1734012361486,0.52050768,3932.0,3930.3,0.7889]
[1734012361824,0.01802741,3931.9,3930.5,2.5442]
[1734012362022,0.01802741,3931.9,3930.3,3.7889]
[1734012362023,2.54358,3931.5,3930.3,3.7889]
[1734012362188,3.06377768,3932.0,3930.3,3.7889]
[1734012362189,2.54341,3931.8,3930.7,3.0]
[1734012362613,2.54346,3931.7,3930.7,3.0]
[1734012362895,0.01802741,3931.6,3930.2,2.96920161]
[1734012363127,0.36504956,3931.6,3929.7,2.96920161]
[1734012363335,2.54395,3930.9,3929.7,5.51392161]
[1734012363650,0.01802741,3931.3,3929.7,2.96920161]
[1734012363803,3.45247411,3931.4,3930.3,2.54433]
[1734012364194,0.90879411,3931.4,3930.9,2.54388]
[1734012364393,0.90879411,3932.3,3931.0,3.0]
[1734012364627,2.54356,3931.5,3930.2,0.8258]
[1734012364796,0.01802741,3931.4,3930.3,2.54431]
[1734012364999,0.01802741,3931.9,3930.5,2.96920161]
[1734012365200,0.51669785,3932.1,3930.6,3.0]
[1734012365520,0.1425492,3932.0,3930.6,3.0]
[1734012365723,2.54318,3932.1,3931.0,5.54386]
[1734012365899,0.92682152,3932.6,3931.0,3.8144]
[1734012366254,0.34694015,3932.9,3931.0,3.8144]
[1734012366255,0.34694015,3932.9,3931.5,3.0]
[1734012366539,0.90879411,3933.1,3932.2,2.54308]
[1734012366755,0.90879411,3933.1,3931.9,3.0]
[1734012366756,0.01802741,3933.5,3931.9,3.0]
[1734012367048,0.01802741,3933.5,3932.0,2.54321]
[1734012367049,0.53409574,3933.5,3932.0,2.54321]
[1734012367348,0.53409574,3933.5,3931.9,3.0]
[1734012367493,2.54241,3933.3,3931.9,3.0]
[1734012367693,2.54247,3933.2,3932.1,2.54315]
[1734012367924,2.6998467,3933.4,3932.3,2.543]
[1734012368164,0.1575067,3933.4,3931.9,3.0]
[1734012368298,0.51606833,3933.5,3932.5,2.5429]
[1734012368693,2.54234,3933.4,3932.3,3.0]
[1734012368943,0.51606833,3933.5,3932.3,3.0]
[1734012369136,2.54248,3933.2,3932.3,3.0]
[1734012369440,2.54233,3933.4,3932.3,5.54301]
[1734012369614,0.51606833,3933.5,3932.3,3.0]
[1734012369817,0.51606833,3933.5,3932.4,2.54296]
[1734012370017,2.54202,3933.9,3932.7,5.54272]
[1734012370242,2.54202,3933.9,3932.8,0.8321]
[1734012370410,0.01802741,3933.8,3932.8,0.8321]
[1734012370610,0.01802741,3934.2,3933.1,2.96920161]
[1734012370814,2.54166,3934.5,3933.3,2.54237]
[1734012371015,0.49679649,3934.6,3933.7,2.54212]
[1734012371240,2.54129,3935.0,3933.7,2.54212]
[1734012371241,0.01802741,3935.1,3933.9,2.96920161]
[1734012371555,3.96764047,3935.3,3934.0,3.0]
[1734012371837,2.5413,3935.0,3934.0,3.0]
[1734012372041,0.01802741,3935.2,3934.0,3.0]
[1734012372042,2.54129,3935.1,3934.0,3.0]
[1734012372195,0.01802741,3935.2,3934.0,3.0]
[1734012372196,2.54122,3935.2,3934.0,3.0]
[1734012372400,3.04144679,3935.4,3934.3,5.51094161]
[1734012372842,3.04144679,3935.4,3934.0,3.0]
[1734012372843,0.50040679,3935.4,3934.7,2.96920161]
[1734012372999,0.77140266,3935.9,3934.7,2.96920161]
[1734012373200,0.77140266,3935.9,3933.2,2.54241]
[1734012373201,0.01802741,3935.8,3934.2,2.96920161]
[1734012373449,2.54131,3935.0,3934.3,3.0]
[1734012373755,0.27215841,3934.9,3933.8,5.96920161]
[1734012373903,2.54129,3935.1,3933.8,5.96920161]
[1734012374109,2.54093,3935.6,3933.8,5.96920161]
[1734012374110,0.01802741,3935.0,3933.8,5.96920161]
[1734012374415,0.51759556,3935.3,3933.8,5.96920161]
[1734012374801,0.55,3935.2,3933.3,2.96920161]
[1734012374995,2.54195,3934.0,3932.9,2.96920161]
[1734012375200,2.54164,3934.5,3932.8,0.7506]
[1734012375201,0.01802741,3934.4,3932.8,0.7506]
[1734012375438,0.55,3934.7,3932.7,0.49773916]
[1734012375439,3.04866766,3933.7,3932.7,0.49773916]
[1734012375642,2.54171,3934.4,3932.7,0.49773916]
[1734012375847,2.54186,3934.2,3932.9,5.51184161]
[1734012376218,0.254171,3934.3,3933.3,2.96920161]
[1734012376423,0.92682152,3934.9,3933.3,2.96920161]
[1734012376664,3.46819152,3934.9,3933.4,0.7626]
[1734012376858,2.54158,3934.6,3933.4,0.7626]
[1734012377069,2.54158,3934.6,3933.4,3.30492]
[1734012377275,2.54127,3935.1,3933.4,3.30492]
[1734012377276,0.90879411,3935.3,3933.8,3.0]
[1734012377421,0.90879411,3935.3,3933.8,5.54202]
[1734012377422,2.54124,3935.1,3933.8,5.54202]
[1734012377627,0.51755321,3935.1,3933.8,3.0]
[1734012378275,0.51755321,3935.1,3934.1,3.0]
[1734012378422,0.51755321,3935.1,3933.8,3.0]
[1734012378627,0.53558062,3935.1,3933.8,3.0]
[1734012378823,2.54144,3934.8,3933.8,3.0]
[1734012379259,2.55938741,3934.9,3933.8,3.0]
[1734012379526,2.54163,3934.5,3933.7,2.96920161]
[1734012379727,0.01802741,3934.4,3933.7,2.96920161]
[1734012380267,0.01802741,3934.9,3933.7,2.96920161]
[1734012380484,0.01802741,3934.9,3933.2,2.96920161]
[1734012380485,0.33845447,3934.8,3933.2,2.96920161]
[1734012380776,0.35648188,3934.8,3933.3,3.0]
[1734012380924,2.54163,3934.5,3933.3,3.0]
[1734012381326,2.87992447,3934.8,3933.5,3.0]
[1734012381568,0.6348036,3934.7,3933.5,3.0]
[1734012381727,0.92682152,3934.6,3933.3,3.0]
[1734012381922,0.50899207,3934.5,3933.3,3.0]
[1734012382230,2.54204,3933.9,3933.3,3.0]
[1734012382429,2.54188,3934.1,3933.3,3.0]
[1734012382625,2.54178,3934.3,3933.3,3.0]
[1734012382855,2.54188,3934.1,3933.3,3.0]
[1734012383060,0.92682152,3934.0,3932.2,2.96920161]
[1734012383366,2.54273,3932.8,3931.9,0.8023]
[1734012383539,2.56085741,3932.7,3931.9,0.8023]
[1734012383751,2.54285,3932.6,3931.9,0.8023]
[1734012383953,0.49710424,3933.3,3932.1,2.54314]
[1734012384139,0.49710424,3933.3,3931.9,3.34559]
[1734012384140,2.54247,3933.2,3931.9,3.34559]
[1734012384346,2.54247,3933.2,3932.1,2.96920161]
[1734012384538,0.49710424,3933.3,3932.4,2.54297]
[1734012384745,0.49710424,3933.3,3932.5,5.51209161]
[1734012385041,2.54221,3933.6,3932.6,3.0]
[1734012385283,2.54207,3933.8,3932.7,0.8145]
[1734012385484,0.90879411,3934.0,3932.7,0.8145]
[1734012385694,0.90879411,3934.0,3932.9,2.96920161]
[1734012385837,0.90879411,3934.0,3932.7,0.8145]
[1734012385838,2.5424,3933.3,3932.7,0.8145]
[1734012386040,2.5424,3933.3,3932.5,3.0]
[1734012386592,0.50440239,3933.5,3932.6,2.54282]
[1734012386887,0.50445321,3933.7,3933.0,2.54258]
[1734012387246,2.84865995,3934.3,3933.0,2.54258]
[1734012387644,2.84865995,3934.3,3933.1,2.54248]
[1734012387802,0.87336172,3934.2,3932.9,6.36222]
[1734012388099,0.51384098,3934.2,3932.9,3.8196]
[1734012388592,0.01802741,3934.2,3932.7,2.54277]
[1734012388978,2.55983741,3934.2,3932.5,0.7859]
[1734012389192,0.55,3934.1,3932.5,0.7859]
[1734012389494,0.55,3934.1,3930.8,2.54395]
[1734012389495,2.54259,3933.0,3932.1,0.8123]
[1734012389801,0.01802741,3932.9,3932.1,0.8123]
[1734012389973,2.54285,3932.6,3932.1,0.8123]
[1734012390501,2.54272,3932.8,3932.1,0.8123]
[1734012390653,3.05305174,3932.8,3932.1,0.8123]
[1734012391071,2.54256,3933.1,3932.1,0.8123]
[1734012391718,0.90879411,3933.2,3932.1,3.35545]
[1734012392086,0.90879411,3933.2,3932.1,0.8123]
[1734012392415,3.45126411,3933.2,3932.1,0.8123]
[1734012392640,0.90879411,3933.2,3932.1,0.8123]
[1734012392820,2.5429,3932.6,3931.9,3.0]
[1734012392984,2.56094741,3932.5,3931.9,3.0]
[1734012393325,2.54258,3933.0,3931.9,3.0]
[1734012393326,0.01802741,3933.0,3931.9,3.0]
[1734012393617,1.41603366,3933.2,3931.9,3.0]
[1734012393783,1.41603366,3933.2,3931.9,5.54329]
[1734012393983,0.01802741,3933.1,3931.9,3.0]
[1734012394405,1.41603366,3933.2,3932.1,3.0]
[1734012394614,1.41603366,3933.2,3931.9,3.0]
[1734012394812,1.41603366,3933.2,3932.5,0.7759]
[1734012395013,0.90879411,3933.2,3932.6,2.54282]
[1734012395402,0.90879411,3933.2,3932.5,0.7759]
[1734012395812,0.50896779,3933.4,3932.9,2.54264]
[1734012396033,0.90879411,3933.9,3932.5,3.7759]
[1734012396181,0.90879411,3933.9,3933.2,2.54243]
[1734012396385,0.90879411,3933.9,3932.8,2.54271]
[1734012396579,1.41039145,3933.9,3932.7,3.0]
[1734012396876,0.01802741,3933.8,3932.9,2.54259]
[1734012397112,1.41039145,3933.9,3932.9,2.54259]
[1734012397517,0.01802741,3933.8,3932.7,3.0]
[1734012397686,0.01802741,3933.8,3932.5,0.7759]
[1734012397896,2.54241,3933.3,3932.2,3.0]
[1734012398099,2.54241,3933.3,3932.2,5.5431]
[1734012398715,2.54226,3933.5,3932.3,2.54303]
[1734012398932,0.25602874,3933.4,3932.3,2.54303]
[1734012399636,0.49601686,3933.0,3932.3,2.54303]
[1734012402296,0.49601686,3933.0,3932.3,2.54304]
[1734012402692,0.49601686,3933.0,3932.7,2.54273]
[1734012402999,0.49601686,3933.0,3932.4,2.54291]
[1734012403846,0.49601686,3933.0,3932.2,3.0]
[1734012404061,0.01802741,3933.5,3932.4,2.54295]
[1734012405062,0.55,3933.3,3931.7,6.31022]
[1734012405353,2.54258,3933.0,3931.3,3.33512]
[1734012405664,2.54273,3932.8,3931.7,2.5434]
[1734012405815,0.90879411,3933.1,3931.7,0.25434]
[1734012406143,5.21365,3934.5,3931.7,0.25434]
[1734012406144,0.90879411,3933.8,3931.9,2.96920161]
[1734012406462,0.50703165,3933.4,3932.3,2.54302]
[1734012406646,0.50703165,3933.4,3931.9,2.96920161]
[1734012406647,0.50703165,3933.4,3932.5,2.54289]
[1734012407521,0.50703165,3933.4,3932.0,3.0]
[1734012407717,0.01802741,3933.3,3932.0,3.0]
[1734012408169,0.50703165,3933.4,3932.2,2.5431]
[1734012408839,0.56802741,3933.3,3931.8,3.32965]
[1734012409023,0.56802741,3933.3,3931.8,0.7863]
[1734012409222,0.56802741,3933.3,3931.5,3.0]
[1734012409223,2.54286,3932.6,3931.5,3.0]
[1734012409530,2.54286,3932.6,3931.6,2.54347]
[1734012409726,0.92682152,3933.2,3931.5,0.7967]
[1734012409920,0.92682152,3933.2,3931.7,2.54336]
[1734012410264,2.54252,3933.1,3931.5,3.34024]
[1734012410429,2.54286,3932.6,3931.5,3.34024]
[1734012410625,0.01802741,3933.0,3931.5,3.7967]
[1734012410979,0.01802741,3933.0,3931.5,0.7967]
[1734012410980,2.54312,3932.2,3931.5,0.7967]
[1734012411265,0.90879411,3932.9,3931.2,0.7518]
[1734012411266,2.54331,3931.9,3931.2,0.7518]
[1734012411667,2.54317,3932.1,3931.2,0.7518]
[1734012411872,0.49676497,3932.2,3931.2,3.29555]
[1734012412072,2.54293,3932.5,3931.2,0.7518]
[1734012412222,0.90879411,3932.9,3931.3,2.96920161]
[1734012412426,0.90879411,3932.9,3932.0,0.8247]
[1734012413272,2.54317,3932.1,3931.3,3.0]
[1734012413440,0.90879411,3932.6,3931.1,0.7697]
[1734012413771,2.56093741,3932.5,3931.1,0.7697]
[1734012413991,0.34697315,3932.4,3931.1,0.7697]
[1734012414192,2.54329,3932.0,3931.1,0.7697]
[1734012414569,0.34697315,3932.4,3931.1,0.7697]
[1734012414768,2.54324,3932.0,3931.1,0.7697]
[1734012415257,0.34697315,3932.4,3931.1,0.7697]
[1734012415258,2.54343,3931.7,3931.1,0.7697]
[1734012415461,2.54357,3931.5,3930.7,0.8048]
[1734012415648,3.30350364,3931.7,3930.7,0.8048]
[1734012416090,3.04916064,3931.7,3930.7,0.8048]
[1734012416460,2.5435,3931.6,3930.7,0.8048]
[1734012416663,2.5435,3931.6,3930.7,3.8048]
[1734012416850,3.04916064,3931.7,3930.7,3.8048]
[1734012417497,0.01802741,3932.1,3930.7,0.8048]
[1734012417651,2.54343,3931.7,3930.7,3.8048]
[1734012417958,2.54339,3931.8,3930.7,3.34884]
[1734012418160,0.50903507,3931.9,3930.7,0.8048]
[1734012418569,2.54356,3931.5,3930.7,0.8048]
[1734012419788,0.90879411,3932.1,3930.8,2.96920161]
[1734012420098,3.45197411,3932.1,3931.0,2.54382]
[1734012421390,0.90879411,3932.1,3931.2,3.72450161]
[1734012421691,3.45138411,3933.0,3931.6,3.75130161]
[1734012421875,0.90879411,3933.0,3932.0,2.54323]
[1734012422077,3.45139411,3933.0,3932.1,0.254323]
[1734012422405,3.45139411,3933.0,3931.7,3.0]
[1734012422406,0.90879411,3933.0,3931.7,3.0]
[1734012422605,0.90879411,3933.0,3931.8,0.8158]
[1734012422896,2.54235,3933.4,3932.3,0.8158]
[1734012423065,0.90879411,3933.8,3932.3,0.8158]
[1734012423066,2.54228,3933.5,3932.4,2.54296]
[1734012423751,2.54214,3933.7,3932.5,2.54289]
[1734012424096,2.54168,3934.5,3933.4,2.5423]
[1734012424302,0.51567698,3934.8,3933.7,0.8083]
[1734012424451,0.90879411,3935.3,3934.0,2.96920161]
[1734012424656,0.92682152,3935.6,3934.0,5.51111161]
[1734012424890,0.07938569,3935.0,3934.0,2.96920161]
[1734012425095,0.50838454,3935.1,3934.0,5.51113161]
[1734012425295,2.54108,3935.4,3934.1,3.7788]
[1734012425799,2.54111,3935.3,3934.1,3.7788]
[1734012426199,2.54118,3935.2,3934.1,3.7788]
[1734012426789,2.5413,3935.0,3934.1,3.7788]
[1734012426967,0.52093788,3935.4,3934.1,3.7788]
[1734012426968,2.54171,3934.4,3934.1,3.7788]
[1734012427172,2.54171,3934.4,3932.8,2.54268]
[1734012427173,0.01802741,3935.2,3933.7,3.0]
[1734012427461,2.54162,3934.5,3933.5,0.8258]
[1734012427661,2.54162,3934.5,3933.6,2.96920161]
[1734012427861,2.54162,3934.5,3933.7,3.0]
[1734012428080,3.44982411,3935.4,3933.8,0.7803]
[1734012428292,2.54137,3934.9,3933.8,0.7803]
[1734012428604,2.54137,3934.9,3934.2,0.8231]
[1734012429013,2.5412,3935.2,3934.2,0.8231]
[1734012429195,3.44983411,3935.4,3934.4,2.96920161]
[1734012429362,2.54069,3936.0,3934.5,3.8231]
[1734012429568,2.54078,3935.8,3934.9,0.8285]
[1734012429798,2.54077,3935.8,3934.9,0.8285]
[1734012430112,2.54077,3935.8,3934.4,2.96920161]
[1734012430113,2.54123,3935.2,3934.4,0.8285]
[1734012430404,2.54119,3935.2,3934.4,0.8285]
[1734012430806,2.54101,3935.5,3934.4,3.79770161]
[1734012431014,2.54041,3936.4,3934.8,2.96920161]
[1734012431169,2.54072,3935.9,3934.9,3.7548]
[1734012431710,2.54082,3935.8,3934.9,3.7548]
[1734012432189,0.51275534,3936.1,3934.9,3.7548]
[1734012432190,2.54066,3936.0,3934.9,3.7548]
[1734012432397,2.54048,3936.3,3935.0,2.54128]
[1734012432772,2.54005,3937.0,3936.1,2.96920161]
[1734012432921,0.90879411,3937.7,3936.1,2.96920161]
[1734012433082,2.54009,3936.9,3936.1,2.96920161]
[1734012433279,0.01802741,3936.8,3935.8,0.8218]
[1734012433510,0.4998298,3937.1,3935.8,0.8218]
[1734012433819,2.5397,3937.5,3936.0,2.96920161]
[1734012433978,0.35810579,3937.4,3936.0,2.96920161]
[1734012434183,0.51603528,3937.2,3936.0,2.96920161]
[1734012434381,2.54006,3937.0,3936.0,2.96920161]
[1734012434793,2.54008,3936.9,3936.2,0.7765]
[1734012435120,2.53992,3937.2,3936.2,0.7765]
[1734012435519,0.50353827,3937.4,3936.2,0.7765]
[1734012435830,0.01802741,3937.3,3936.2,0.7765]
[1734012436180,2.54028,3936.6,3936.2,0.7765]
[1734012436419,0.01802741,3936.5,3935.6,3.0]
[1734012436638,2.5406,3936.1,3935.7,0.7712]
[1734012436824,2.54046,3936.3,3935.7,0.7712]
[1734012437141,2.54039,3936.4,3935.7,0.7712]
[1734012437433,2.54044,3936.4,3935.7,0.7712]
[1734012437591,0.01802741,3937.1,3935.7,0.7712]
[1734012437795,2.54059,3936.1,3935.7,0.7712]
[1734012438232,2.54068,3936.0,3935.7,0.7712]
[1734012438606,2.94166915,3937.0,3935.7,0.7712]
[1734012438607,2.54052,3936.3,3935.7,0.7712]
[1734012439396,3.44878411,3937.1,3935.7,0.7712]
[1734012439598,3.44878411,3937.1,3932.4,5.25]
[1734012439599,2.54011,3936.9,3936.3,3.0]
[1734012439911,0.01802741,3937.3,3936.0,0.772]
[1734012440112,2.54034,3936.5,3936.0,0.772]
[1734012440534,2.54003,3937.0,3936.0,0.772]
[1734012440910,2.54034,3936.5,3936.0,0.772]
[1734012441112,2.54034,3936.5,3935.1,0.4963491]
[1734012441113,2.54067,3936.0,3935.5,0.8284]
[1734012441336,2.54067,3936.0,3935.5,3.8284]
[1734012441712,2.54067,3936.0,3935.5,0.8284]
[1734012442120,0.51737094,3936.7,3935.5,3.8284]
[1734012442321,2.54033,3936.5,3935.5,3.8284]
[1734012442549,0.30527294,3937.0,3935.5,3.8284]
[1734012442713,0.49608851,3936.9,3935.5,3.8284]
[1734012442925,0.30527294,3937.0,3935.5,3.8284]
[1734012443128,2.54048,3936.3,3935.5,3.8284]
[1734012443337,2.54034,3936.5,3935.5,3.8284]
[1734012443658,3.03899386,3937.1,3935.9,3.0]
[1734012443659,2.54014,3936.8,3935.9,3.0]
[1734012443830,3.03897386,3937.1,3936.0,0.7746]
[1734012444015,0.01802741,3937.0,3936.0,0.7746]
[1734012444214,2.54045,3936.4,3936.0,0.7746]
[1734012444524,2.54045,3936.4,3935.2,2.54111]
[1734012444525,0.01802741,3936.7,3935.2,0.8126]
[1734012444733,2.54059,3936.1,3935.2,0.8126]
[1734012445417,2.54045,3936.3,3935.2,0.8126]
[1734012445618,2.54045,3936.3,3935.2,3.35375]
[1734012445858,2.54045,3936.3,3935.3,3.0]
[1734012446058,0.01802741,3936.8,3935.2,0.8126]
[1734012446232,2.54046,3936.3,3935.2,0.8126]
[1734012446427,0.01802741,3936.2,3935.2,0.8126]
[1734012446627,2.54081,3935.8,3935.2,0.8126]
[1734012447258,0.51777239,3936.6,3935.4,2.96920161]
[1734012447433,0.07936167,3936.8,3935.5,3.8326]
[1734012447633,0.90879411,3937.2,3935.8,3.8326]
[1734012447963,1.25365552,3937.2,3935.8,3.8326]
[1734012448176,2.53975,3937.4,3935.8,5.96920161]
[1734012448335,1.0593904,3937.7,3936.4,0.7806]
[1734012448336,0.13256888,3937.7,3936.4,0.7806]
[1734012448670,2.53989,3937.2,3936.4,0.7806]
[1734012449022,2.53976,3937.4,3936.4,0.7806]
[1734012449223,2.5396,3937.7,3936.6,2.96920161]
[1734012449471,2.5396,3937.7,3936.7,0.8261]
[1734012449765,0.51723393,3937.8,3936.7,0.8261]
[1734012450284,2.53969,3937.5,3936.7,0.8261]
[1734012450930,2.53981,3937.3,3936.7,0.8261]
[1734012451182,2.53973,3937.5,3936.7,0.8261]
[1734012451470,2.54014,3936.8,3936.2,0.8279]
[1734012452432,2.54032,3936.6,3936.2,0.8279]
[1734012453242,0.07934538,3936.5,3936.2,0.8279]
[1734012453440,0.07934538,3936.4,3936.2,0.8279]
[1734012453646,0.51398344,3936.8,3936.2,0.8279]
[1734012453932,0.07934839,3936.7,3936.2,0.8279]
[1734012454251,2.5404,3936.4,3936.2,0.8279]
[1734012454456,0.07934839,3936.3,3936.2,0.8279]
[1734012454819,2.61979839,3936.3,3936.2,0.8279]
[1734012455254,2.6198011,3936.3,3936.2,0.8279]
[1734012455716,0.0793511,3936.3,3936.2,0.8279]
[1734012456330,0.0793511,3936.3,3935.7,0.7749]
[1734012456555,2.54072,3935.9,3935.0,0.81]
[1734012456765,0.0793511,3935.8,3935.0,0.81]
[1734012456963,2.54072,3935.9,3935.0,0.81]
[1734012456964,0.0793511,3935.7,3935.0,0.81]
[1734012457269,0.02990973,3936.8,3935.3,2.96920161]
[1734012457436,2.54045,3936.3,3935.4,0.7564]
[1734012457622,0.07935074,3936.2,3935.7,2.96920161]
[1734012457824,2.55169232,3937.3,3936.1,2.54056]
[1734012458024,0.90879411,3937.7,3936.1,2.54056]
[1734012458025,0.07933849,3937.2,3936.5,3.0]
[1734012458349,0.07933849,3937.1,3936.6,0.7645]
[1734012458666,0.07933849,3937.0,3936.6,0.7645]
[1734012458866,2.53962,3937.6,3936.6,0.7645]
[1734012459073,0.07932556,3937.5,3937.0,3.0]
[1734012459242,0.07932556,3937.4,3937.2,3.0]
[1734012459571,0.50822197,3938.3,3938.0,0.8027]
[1734012459726,0.07931541,3938.2,3938.0,0.8027]
[1734012460033,0.01188232,3938.4,3938.0,0.8027]
[1734012460034,0.07931541,3938.1,3938.0,0.8027]
[1734012460233,0.50329665,3939.1,3938.0,0.8027]
[1734012460234,2.53886,3938.8,3938.0,0.8027]
[1734012460567,2.53898,3938.6,3938.0,0.8027]
[1734012460770,2.5391,3938.4,3938.0,0.8027]
[1734012460970,0.07930309,3938.3,3938.0,0.8027]
[1734012461195,0.07930309,3938.2,3938.0,0.8027]
[1734012461344,0.07930309,3938.2,3937.1,5.53993]
[1734012461345,2.61855309,3938.2,3937.6,0.7709]
[1734012461663,0.07930309,3938.1,3937.2,0.8331]
[1734012461971,2.53942,3937.9,3937.2,0.8331]
[1734012462267,0.0793129,3938.1,3937.2,0.8331]
[1734012462628,2.53891,3938.7,3937.5,3.33398]
[1734012462825,0.07930353,3938.6,3937.8,2.96920161]
[1734012463074,0.07930353,3938.5,3937.9,0.7943]
[1734012463256,0.07930353,3938.5,3937.9,3.33371]
[1734012463428,0.07930353,3938.4,3937.9,3.33371]
[1734012463628,3.06116198,3939.2,3937.9,3.33371]
[1734012463629,0.07930353,3938.3,3937.9,0.7943]
[1734012463853,0.52252198,3939.2,3937.9,0.7943]
[1734012464054,2.53876,3939.0,3937.9,0.7943]
[1734012464274,0.07930228,3938.9,3937.9,0.7943]
[1734012464440,0.07930228,3938.8,3937.9,0.7943]
[1734012464623,0.07930228,3938.7,3937.9,0.7943]
[1734012464827,2.53876,3939.0,3937.9,0.7943]
[1734012464828,0.07930228,3938.6,3937.9,0.7943]
[1734012465057,0.07930228,3938.5,3937.9,0.7943]
[1734012465237,0.07930228,3938.4,3937.9,0.7943]
[1734012465443,2.53876,3939.0,3937.9,0.7943]
[1734012465657,0.3061042,3939.1,3937.9,0.7943]
[1734012465658,0.07930216,3938.9,3937.9,0.7943]
[1734012465854,0.07930216,3938.8,3937.9,0.7943]
[1734012466054,0.07930216,3938.7,3937.9,3.33369]
[1734012466258,0.07930216,3938.6,3937.9,3.33369]
[1734012466460,0.51059746,3939.2,3937.9,0.7943]
[1734012466671,0.07929572,3939.1,3938.2,0.7844]
[1734012466873,0.07929572,3939.0,3938.2,0.7844]
[1734012467073,0.07929572,3938.9,3938.2,0.7844]
[1734012467387,0.07929572,3938.8,3938.2,0.7844]
[1734012467697,0.07929572,3938.7,3938.2,0.7844]
[1734012467935,0.51460752,3939.4,3938.2,0.7844]
[1734012468197,2.53877,3939.0,3938.2,0.7844]
[1734012468372,0.07930119,3938.9,3938.2,0.7844]
[1734012468570,0.07930119,3938.8,3938.2,0.7844]
[1734012468754,0.51460752,3939.4,3938.2,0.7844]
[1734012468968,0.07929545,3939.3,3938.2,0.7844]
[1734012469180,0.07929545,3939.2,3938.2,0.7844]
[1734012469387,0.07929545,3939.1,3938.2,3.7844]
[1734012469565,0.07929545,3939.0,3938.2,3.7844]
[1734012469750,0.51460752,3939.4,3938.2,3.7844]
[1734012469751,0.07929545,3938.9,3938.2,3.7844]
[1734012469949,0.51460752,3939.4,3938.2,3.7844]
[1734012469950,0.07929545,3938.8,3938.2,0.7844]
[1734012470287,0.51460752,3939.4,3938.2,0.7844]
[1734012470288,0.07929545,3938.7,3938.2,0.7844]
[1734012470517,0.07929545,3938.6,3938.2,0.7844]
[1734012470824,2.53902,3938.6,3937.0,0.8056]
[1734012471121,2.53912,3938.4,3937.1,2.53992]
[1734012471413,0.33500808,3938.5,3937.1,2.53992]
[1734012471414,2.53917,3938.3,3937.1,2.53992]
[1734012471620,0.3350172,3938.5,3937.0,0.8056]
[1734012471621,2.53944,3937.9,3937.0,0.8056]
[1734012471773,0.07931246,3937.8,3937.0,0.8056]
[1734012471972,0.07931246,3937.7,3937.0,0.8056]
[1734012472210,3.04633552,3938.4,3937.0,0.8056]
[1734012472211,0.07931246,3937.6,3937.0,0.8056]
[1734012472415,0.26757347,3938.5,3937.3,0.8074]
[1734012472598,2.61847422,3938.4,3937.3,0.8074]
[1734012472800,2.61849422,3938.3,3937.3,0.8074]
[1734012473110,0.07931422,3938.2,3937.3,0.8074]
[1734012473423,0.07931422,3938.1,3937.4,3.0]
[1734012473576,0.079315,3938.0,3937.4,0.55]
[1734012473949,2.53895,3938.7,3937.3,0.8074]
[1734012473950,0.079315,3937.9,3937.3,0.8074]
[1734012474084,0.079315,3937.8,3937.3,0.8074]
[1734012474276,2.53908,3938.5,3937.3,3.8074]
[1734012474508,2.61847975,3938.4,3937.3,3.8074]
[1734012474708,0.34116773,3938.3,3937.3,3.8074]
[1734012474930,0.09734716,3938.2,3937.5,2.53961]
[1734012475087,0.07931975,3938.1,3937.5,2.53962]
[1734012475284,0.49739023,3938.8,3937.3,0.8074]
[1734012475480,0.07931289,3938.7,3937.7,2.53954]
[1734012475822,0.49739023,3938.8,3937.8,0.8314]